Cogmind - Beta 16.1 @@@ ROGUE MODE // 2026.02.15 @ 19:14:41 Player: queen's_gambit Result: Destroyed by Y-45 Defender with Heavy Assault Rifle Performance ------------- Evolutions (1) 500 Regions Visited (3) 600 Robots Destroyed (8) 40 Value Destroyed (278) 278 Prototype IDs (0) 0 Alien Tech Used (0) 0 Bonus (0) 0 TOTAL SCORE: 1418 Bonus ------- None Cogmind --------- Core Integrity 0/400 Matter 294/300 Energy 100/100 System Corruption 0% Temperature Cool (36) Movement Core (350) Ox6 Location -9/Storage Parts ------- > --- POWER (1) -------- (None) > --- PROPULSION (3) --- (None) > --- UTILITY (2) ------ Large Storage Unit > --- WEAPON (3) ------- (None) > --- INVENTORY (15) --- Light Treads Light Treads Wheel Wheel Hardened Light Armor Plating Peak State ------------ > --- POWER ------------ (None) > --- PROPULSION ------- Aluminum Leg Aluminum Leg Aluminum Leg > --- UTILITY ---------- Heat Sink Large Storage Unit > --- WEAPON ----------- EM Shotgun Light Assault Rifle Light Assault Rifle > --- INVENTORY -------- Wheel Wheel Light Assault Rifle [Rating: 9] Favorites ----------- Power Ion Engine Engine Ion Engine Propulsion Aluminum Leg Treads Light Treads Leg Aluminum Leg Utility High-capacity Storage Unit Device Heat Sink Storage High-capacity Storage Unit Weapon Light Assault Rifle Energy Gun EM Shotgun Ballistic Gun Light Assault Rifle Launcher Grenade Launcher Build | -11 -10 -9 -9 ------- Run | Yrd Mat Mat Sto Slots Evolved 2 | . . 2 . Power . | . . . . Propulsion 1 | . . 1 . Utility . | . . . . Weapon 1 | . . 1 . Parts Attached 20 | 6 6 4 4 Power 1 | 1 . . . Engine 1 | 1 . . . Core . | . . . . Reactor . | . . . . Propulsion 6 | 2 2 . 2 Treads 2 | 2 . . . Leg 4 | . 2 . 2 Wheel . | . . . . Hover . | . . . . Flight . | . . . . Utility 5 | 1 2 2 . Device 1 | . . 1 . Storage 4 | 1 2 1 . Processor . | . . . . Hackware . | . . . . Protection . | . . . . Artifact . | . . . . Weapon 8 | 2 2 2 2 Energy Gun 1 | . . . 1 Energy Cannon . | . . . . Ballistic Gun 6 | 2 1 2 1 Ballistic Cannon . | . . . . Launcher 1 | . 1 . . Special Weapon . | . . . . Impact Weapon . | . . . . Slashing Weapon . | . . . . Piercing Weapon . | . . . . Special Melee Weapon . | . . . . Unidentified Prototypes . | . . . . Parts Lost 11 | . 1 . 10 Power 1 | . . . 1 Propulsion 4 | . . . 4 Utility 1 | . . . 1 Weapon 5 | . 1 . 4 Highest Loss Streak 4 | . 1 . 4 To Critical Strikes . | . . . . Average Backups 4 | 2 7 5 3 Power . | . 1 . . Propulsion 2 | 1 2 2 2 Utility . | . 1 1 . Weapon 1 | . 2 1 . Tool/Special . | . . . . Unused Backups 6 | . . 1 5 Power 1 | . . 1 . Propulsion 4 | . . . 4 Utility 1 | . . . 1 Weapon . | . . . . Tool/Special . | . . . . Average Slot Usage (%) 83 | . 93 73 76 Engine 9 | . 14 11 4 Treads 1 | . 4 . . Leg 21 | . 21 22 20 Device 6 | . . 7 10 Storage 16 | . 25 12 11 Ballistic Gun 24 | . 18 20 29 Launcher 3 | . 8 . . Peak Build Rating 9 | 6 7 8 9 Average Rating 6 | 4 6 6 7 On Entrance 5 | . 6 6 8 Avg Prop Armor Cover (%) . | . . . . Naked Turns . | . . . . Heaviest Build 89 | 13 89 86 29 Greatest Support 40 | 40 40 20 30 Greatest Overweight (x) 16 | . 16 4 6 Average Overweight (x) 1 | . 2 1 1 Largest Inventory Capacity 20 | 8 20 20 15 Average Capacity 15 | 7 17 15 15 Most Carried 9 | 6 9 9 6 Average Carried 4 | 3 7 4 2 Final Capacity 20 | 8 20 15 15 Final Carried 8 | 6 8 2 5 Class Distribution -------------------- 59% | Mutant 40% | Gunner Dominant Class ---------------- Mutant | -10/Materials Mutant | -9/Materials Gunner | -9/Storage Resources | -11 -10 -9 -9 ----------- Run | Yrd Mat Mat Sto Matter Collected 424 | 198 17 . 209 Remotely . | . . . . Salvage Created 267 | . 58 . 209 Parts 20 | . 2 . 18 Haulers Intercepted . | . . . . Recyclers Shooed . | . . . . Parts Field Recycled . | . . . . Retrieved Matter . | . . . . Parts Self-Destructed . | . . . . Prevented . | . . . . Parts Restored . | . . . . Kills | -11 -10 -9 -9 ------- Run | Yrd Mat Mat Sto Combat Hostiles Destroyed 7 | . 2 . 5 Guns 5 | . . . 5 AOE 2 | . 2 . . Classes Destroyed 3 | . 1 . 2 Watcher 1 | . . . 1 Grunt 6 | . 2 . 4 Sentry 1 | . . . 1 Best Kill Streak 2 | . 2 . 2 Combat Bots Only 2 | . 2 . 2 Max Kills in Single Turn 2 | . 1 . 2 Gunslinging 1 | . . . 1 Exploded 1 | . 1 . . Melee . | . . . . Uniques/NPCs Destroyed . | . . . . Combat | -11 -10 -9 -9 -------- Run | Yrd Mat Mat Sto Hostile Shots Fired 157 | . 14 . 143 Missed 47 | . 4 . 43 Hits 110 | . 10 . 100 Projectile 110 | . 10 . 100 Critical Strikes 1 | . . . 1 Damage Taken 1385 | . 141 . 1244 Core 421 | . 21 . 400 Absorbed by Shields . | . . . . Core Remaining (%) 95 | 100 91 . . Volleys Fired 26 | . 4 . 22 Largest 3 | . 2 . 3 Hottest 63 | . 50 . 63 Shots Fired 68 | . 8 . 60 Gun 64 | . 4 . 60 Cannon . | . . . . Launcher 4 | . 4 . . Special . | . . . . Kinetic 64 | . 4 . 60 Thermal . | . . . . Explosive 4 | . 4 . . Electromagnetic . | . . . . Robot Hit Streak 11 | . 2 . 11 Robot Miss Streak 5 | . 1 . 5 Penetration Max . | . . . . Secondary Targets 1 | . . . 1 Max Gunslinging Chain 1 | . . . 1 Shots Hit Robots 44 | . 5 . 39 Core Hits 19 | . 3 . 16 Critical Kills . | . . . . Critical Parts Destroyed . | . . . . Critical Strikes . | . . . . Melee Attacks . | . . . . Impact . | . . . . Slashing . | . . . . Piercing . | . . . . Sneak Attacks . | . . . . Combat Hostiles . | . . . . Follow-up Attacks . | . . . . Damage Inflicted 505 | . 184 . 321 Guns 327 | . 24 . 303 Cannons . | . . . . Explosions 154 | . 154 . . Melee . | . . . . Ramming 24 | . 6 . 18 Kinetic 327 | . 24 . 303 Thermal . | . . . . Explosive 154 | . 154 . . Electromagnetic . | . . . . Impact . | . . . . Slashing . | . . . . Piercing . | . . . . Highest Corruption . | . . . . Average Corruption . | . . . . Corruption Purged . | . . . . Corruption Blocked . | . . . . Overload Shots . | . . . . Overflow Damage . | . . . . Projectiles . | . . . . Explosions . | . . . . Melee . | . . . . Knockbacks 1 | . . . 1 Impact 1 | . . . 1 Kinetic . | . . . . Secondary . | . . . . Self-Inflicted Damage 31 | . 31 . . Shots 1 | . 1 . . Rammed . | . . . . Targets Rammed 6 | . 1 . 5 Kicked 6 | . 1 . 5 Crushed . | . . . . Highest Temperature 32 | . 32 . 7 Average Temperature 12 | . 17 . 3 Received Heat Transfer 738 | . 60 . 678 Siege Activations . | . . . . Martial Activations . | . . . . Shielding Activations . | . . . . Robots Disrupted . | . . . . Combat Hostiles . | . . . . Robots Corrupted . | . . . . Combat Hostiles . | . . . . Parts Fried . | . . . . Impact Corruptions . | . . . . Robots Melted . | . . . . Combat Hostiles . | . . . . Parts Melted . | . . . . Heat Transferred . | . . . . Parts Sabotaged . | . . . . Parts Stolen . | . . . . Parts Stripped . | . . . . Power Chain Reactions . | . . . . Alert | -11 -10 -9 -9 ------- Run | Yrd Mat Mat Sto Maximum Alert Level . | . . . . Low Security (%) 100 | 100 100 100 100 Level 1 . | . . . . Level 2 . | . . . . Level 3 . | . . . . Level 4 . | . . . . Level 5 . | . . . . High Security . | . . . . Max Security . | . . . . Peak Influence 58 | . 58 . 50 Initial . | . . . . Average 6 | . 8 . 6 Influence Increases 202 | . 75 . 127 Destroy 0b10 Robot/C 140 | . 40 . 100 Destroy 0b10 Robot/NC 5 | . . . 5 Destroy Leader 32 | . 10 . 22 Successful Hack 7 | . 7 . . Destroy Structure 18 | . 18 . . Influence Decreases 202 | . 75 . 127 Time Decay 172 | . 75 . 97 Lost Part 30 | . . . 30 Squads Dispatched 3 | . 2 . 1 Investigation 1 | . 1 . . Extermination . | . . . . Reinforcement 2 | . 1 . 1 Assault . | . . . . Garrison . | . . . . Intercept . | . . . . Searches Triggered . | . . . . Construction Impeded . | . . . . Haulers Reinforced . | . . . . Active Scanning Responses . | . . . . Cargo Convoy Interrupts . | . . . . Stealth | -11 -10 -9 -9 --------- Run | Yrd Mat Mat Sto Distress Signals 2 | . . . 2 Communications Jammed . | . . . . Distress Signals . | . . . . Times Spotted 20 | . 3 . 17 Peak Tracking Total 10 | . 2 . 10 Tactical Retreats . | . . . . Traps | -11 -10 -9 -9 ------- Run | Yrd Mat Mat Sto Traps Triggered 1 | . 1 . . Indirectly . | . . . . Trap Hack Attempts . | . . . . Triggered . | . . . . Disarmed . | . . . . Reprogrammed . | . . . . Reused . | . . . . Traps Extracted . | . . . . Installed . | . . . . Triggered . | . . . . Machines | -11 -10 -9 -9 ---------- Run | Yrd Mat Mat Sto Machines Disabled . | . . . . Max in Single Turn . | . . . . Machines Repaired . | . . . . Machines Dismantled . | . . . . Machines Sabotaged . | . . . . Overloaded Fab Kills . | . . . . Hacking | -11 -10 -9 -9 --------- Run | Yrd Mat Mat Sto Machines Accessed 3 | . 2 . 1 Terminals 2 | . 1 . 1 Fabricators . | . . . . Repair Stations 1 | . 1 . . Recycling Units . | . . . . Scanalyzers . | . . . . Garrison Access . | . . . . Total Hacks 9 | . 7 . 2 Successful 6 | . 5 . 1 Failed 3 | . 2 . 1 Catastrophic . | . . . . Database Lockouts . | . . . . Manual . | . . . . Terminals 6 | . 4 . 2 Fabricators . | . . . . Repair Stations 3 | . 3 . . Recycling Units . | . . . . Scanalyzers . | . . . . Garrison Access . | . . . . Terminal Hacks 5 | . 4 . 1 Record 3 | . 2 . 1 Alert Level 1 | . 1 . . Zone Layout 1 | . 1 . . Fabricator Hacks . | . . . . Repair Station Hacks 1 | . 1 . . Scan Component 1 | . 1 . . Recycling Unit Hacks . | . . . . Scanalyzer . | . . . . Garrison Access Hacks . | . . . . Unauthorized Hacks . | . . . . Terminals . | . . . . Fabricators . | . . . . Repair Stations . | . . . . Recycling Units . | . . . . Scanalyzers . | . . . . Garrison Access . | . . . . Data Cores Recovered . | . . . . Used . | . . . . Hacking Detections 2 | . 2 . . Full Trace Events 1 | . 1 . . Feedback Events . | . . . . Feedback Blocked . | . . . . Robot Schematics Acquired . | . . . . Robots Built . | . . . . Authchips . | . . . . Time . | . . . . Total Robot Build Rating . | . . . . Part Schematics Acquired . | . . . . Parts Built . | . . . . Authchips . | . . . . Time . | . . . . Total Part Build Rating . | . . . . Part Studies Acquired . | . . . . Parts Repaired . | . . . . Time . | . . . . Parts Recycled . | . . . . Recycled Matter . | . . . . Retrieved Matter . | . . . . Retrieved Components . | . . . . Parts Scanalyzed . | . . . . Part Schematics Acquired . | . . . . Parts Damaged . | . . . . Bothacking | -11 -10 -9 -9 ------------ Run | Yrd Mat Mat Sto Used RIF Installer . | . . . . Robots Hacked . | . . . . Non-combat . | . . . . Combat . | . . . . Robot Hacks Applied . | . . . . Relay Couplers Released . | . . . . Fabnet Peak Effective % . | . . . . Robots Rewired . | . . . . Allies Hacked . | . . . . Hacks Repelled . | . . . . Allies | -11 -10 -9 -9 -------- Run | Yrd Mat Mat Sto Total Allies . | . . . . Largest Group . | . . . . Highest-Rated Group . | . . . . Highest-Rated Ally . | . . . . Total Orders . | . . . . Ally Attacks . | . . . . Total Damage . | . . . . Kills . | . . . . Allies Corrupted . | . . . . Allies Melted . | . . . . Intel | -11 -10 -9 -9 ------- Run | Yrd Mat Mat Sto Active Infowar (turns) . | . . . . Robot Analysis Total . | . . . . Derelict Logs Recovered . | . . . . Drone Launches . | . . . . Drone Recoveries . | . . . . Exploration | -11 -10 -9 -9 ------------- Run | Yrd Mat Mat Sto Turns Passed 1244 | 117 471 51 605 Spaces Moved 527 | 91 138 19 279 Core 60 | 41 13 . 6 Treads 86 | 50 36 . . Legs 381 | . 89 19 273 Wheels . | . . . . Hover . | . . . . Flight . | . . . . Fastest Speed 50 | 50 160 120 120 Average Speed 212 | 110 323 226 189 Slowest Speed 850 | 160 850 400 350 Overloaded Moves . | . . . . Propulsion Burnouts . | . . . . Robots Hopped . | . . . . Potential Cave-ins . | . . . . Cave-ins Triggered . | . . . . Exploration Rate (%) 20 | 5 26 3 48 Regions Visited 3 Branch Regions 1 Pre-discovered Areas . | . . . . Known Exits Taken . | . . . . Unknown Exits Taken 3 | 1 1 1 . Scrap Searched . | . . . . Spaces Dug . | . . . . Terrain Destroyed 18 | . 18 . . Melee . | . . . . Projectile . | . . . . AOE 18 | . 18 . . Terrain Rammed . | . . . . Walls Destroyed . | . . . . Machines Disabled . | . . . . Actions | -11 -10 -9 -9 --------- Run | Yrd Mat Mat Sto Total 612 | 108 156 29 319 Wait . | . . . . Move 524 | 90 137 18 279 Hop . | . . . . Pick Up 28 | 12 6 3 7 Fast Attach . | . . . . Attach 20 | 6 6 4 4 Detach 4 | . 2 1 1 Swap . | . . . . Drop 4 | . . 3 1 Fire 26 | . 4 . 22 Melee . | . . . . Ram . | . . . . Kick 6 | . 1 . 5 Crush . | . . . . Escape Stasis . | . . . . Rewire . | . . . . Trap . | . . . . Miscellaneous . | . . . . Route ------- -11/Scrapyard -10/Materials -9/Materials -9/Storage History --------- Turn | Location | Event 4 | -11/Scrapyard | Discovered new exit (range 13) 118 | -11/Scrapyard | Entered Materials 306 | -10/Materials | Build established: Mutant 577 | -10/Materials | Discovered new exit (range 3) 589 | -10/Materials | Entered another Materials area 589 | -9/Materials | Evolved 2 slots: Propulsion x1, Weapon x1 589 | -9/Materials | Discovered new exit (range 9) 640 | -9/Materials | Entered Storage 909 | -9/Storage | Build established: Gunner 1232 | -9/Storage | Core integrity fell below 50% 1243 | -9/Storage | Core integrity fell below 20% 1245 | -9/Storage | Destroyed by Y-45 Defender with Heavy Assault Rifle Last Messages --------------- exit from [Garrison] corridor networks. To ensure safe passage of response squads entering a potential hostile fire zone, the installation itself is reinforced against explosives and kinetic weaponry that might otherwise inflict excessive collateral damage. Corresponding defensive measures have rendered it somewhat weak against thermal attacks. For emergency situations where an area has been overrun, or a garrison has been infiltrated, the entrance and inner tunnel may be permanently sealed to prevent passage and contain the threat. 01221_ Hvy. Assault Rifle destroyed. 01222_ Heat Sink destroyed. 01225_ Kicked R-06 Scavenger. 01225_ Aluminum Leg destroyed. 01227_ W-16 Scout sends out distress signal. 01235_ K-01 Serf cleans the Terminal. 01245_ Critical hit (Burn: +37). Map ----- +----------------------------------------------------+ | ?????????????????????????????????????????????????? | | ?????????????????????????????????????????????????? | | ?????????????????????????????????????????????????? | | ?????????????????????????????????????????????????? | | ?????????????????????????????????????????????????? | | ?????????????????????????????????????????????????? | | ?????????????????????????????????????????????????? | | ?????????????????????????????????????????????????? | | ?????????????????????????????????????????????????? | | ?????????????????????????????????????????????????? | | ?????????????????????????????????????????????????? | | ????????????????????????????????????????????????? | | ???????????????????????????????????????????????? | | ???????????????????????????????????????????????? | | ???????????????????????????????????????????????? | | ?????????????????########?????????????????###### | | ?????????????????# """ ##????????????????# | | ????????????????## "R" "##???????????????# | | ????????????????? " " T?# ??????????????# #? | | ?????????????????# "## ?????????????# #? | | ?????????????????# !/?# ############# #? | | ?????????????????# / ?# " #? | | ?????????????????? ??? "T #? | | ??????????????????? ???????### """ """#? | | ?????????############k########### a """ R"#? | | ????????# # Y @ gg """ """#? | | ????????# Y g g #? | | ????????# # "T"g k #? | | ????????# """ ""??# g ######+###### ## | | ???????????"" ????# #?# ## | | ??????????????????# #?# """ ## ## | | ??????????????????# #?# "??""" ## ## | | ??????????????????# #?# "??????## ## | | ??????????????????# #?# "???????# ## | | ??????????????????###" "# #?# """"????# ## | | ????????????????????#"Y"# #?# """ ## # | | ????????????????????#"""# ### ## + | | ????????????????????##### + ## # | | ????????????????????????# #########+### # | | ????????????????????????#+##???????# + | | ???????????????????????????????????# #### | | ???????????????????????????????????# #??# | | ???????????????????????????????????# #??# | | ?????????????????????????????????### #+##+###? | | ?????????????????????????????????# #[! #? | | ##########??????????##########???# # | #? | | # #??????????# #???# # #? | | # #??????????# #???# + #? | | # """" #??????????# """" #???# # #? | | # ""??" #??????????# "??" #???# # | #? | +----------------------------------------------------+ Best States ------------- Heat Dissipation 38 Energy Generation 10 Energy Capacity 250 Matter Stores 294 Matter Capacity 300 Sight Range 16 Terrain Scan Density 10 Evasion (%) 55 Recoil Reduction 2 Item Schematics ----------------- None Robot Schematics ------------------ None Fabricated ------------ Nothing Repaired ---------- Nothing Studied --------- None Alien Tech Used ----------------- None Achievements -------------- Organ Harvest Challenges ------------ None Game ------ Seed AnalysisPortableExoskeleton Manual? 0 Play Time 00:15:32 Cumulative 17.5 hours Start 2026.02.15 @ 18:54:02 End 2026.02.15 @ 19:14:41 Sessions 1 Manual Loads 0 Difficulty Rogue Special Mode None Game No. 25 Rogue 25 Adventurer 0 Explorer 0 Win Type - Total 0 Types 0/0/0/0/0/0/0/0/0/0 Lore% 2 Gallery% 12 Achievement% 7 Wizard Run 0 Options --------- Layout 1 ASCII 0 Keyboard 0 Movement Vi Keybinds 0 Fullscreen 1 Font 24/Smallcaps Map View 50x35 Zoom Use 0% Tactical HUD 1 Map Filters NONE Filters NONE Steam 1 RUN: 9c8ebde3-a55c-4edf-b591-bc5c54c97c09